fUST/lending_fUST_20250304
["ID","MTS","AMOUNT","RATE_DAILY","PERIOD"]
[355215225,1741018239031,-3472.6295357,0.00021918,2]
[355215226,1741018239043,-160.87846488,0.00022,2]
[355215227,1741018239055,-804.57628055,0.00022683,2]
[355215228,1741018239070,-300.0,0.00022772,2]
[355215229,1741018239081,-405.76613122,0.00022773,2]
[355215230,1741018239097,-500.0,0.00022773,2]
[355215231,1741018239108,-258.55219573,0.00022773,2]
[355215232,1741018239128,-471.17739192,0.00022773,2]
[355215258,1741018244156,-31.81540821,0.00022773,2]
[355215259,1741018244166,-552.48034448,0.00022773,2]
[355215260,1741018244176,-219.54116534,0.00022773,2]
[355215261,1741018244186,-500.0,0.00022773,2]
[355215262,1741018244204,-500.0,0.00022773,2]
[355215263,1741018244214,-500.0,0.00022782,2]
[355215264,1741018244224,-500.0,0.00022782,2]
[355215265,1741018244234,-500.0,0.00022782,2]
[355215266,1741018244245,-500.0,0.00022782,2]
[355215267,1741018244255,-500.0,0.00022782,2]
[355215268,1741018244265,-500.0,0.00022782,2]
[355215269,1741018244275,-500.0,0.00022782,2]
[355215270,1741018244286,-500.0,0.00022782,2]
[355215271,1741018244296,-500.0,0.00022782,2]
[355215272,1741018244306,-500.0,0.00022782,2]
[355215274,1741018244317,-500.0,0.00022782,2]
[355215275,1741018244327,-507.44322062,0.00022782,2]
[355215277,1741018244337,-500.0,0.00022782,2]
[355215279,1741018244347,-500.0,0.00022782,2]
[355215281,1741018244362,-564.39411403,0.00022782,2]
[355215283,1741018244372,-500.0,0.00022782,2]
[355215285,1741018244382,-500.0,0.00022782,2]
[355215287,1741018244392,-500.0,0.00022782,2]
[355215289,1741018244403,-494.74884153,0.00022782,2]
[355215291,1741018244417,-5.25115847,0.00022782,2]
[355215293,1741018244427,-500.0,0.00022782,2]
[355215295,1741018244438,-500.0,0.00022782,2]
[355215297,1741018244448,-500.0,0.00022782,2]
[355215299,1741018244458,-500.0,0.00022782,2]
[355215301,1741018244468,-484.95868904,0.00022782,2]
[355215305,1741018244487,-15.04131096,0.00022782,2]
[355215307,1741018244498,-500.0,0.00022782,2]
[355215309,1741018244508,-500.0,0.00022782,2]
[355215310,1741018244519,-500.0,0.00022782,2]
[355215311,1741018244529,-500.0,0.00022782,2]
[355215312,1741018244539,-500.0,0.00022782,2]
[355215313,1741018244551,-500.0,0.00022782,2]
[355215314,1741018244561,-264.29383964,0.00022782,2]
[355215315,1741018244573,-235.70616036,0.00022782,2]
[355215316,1741018244583,-419.44883751,0.00022782,2]
[355215317,1741018244598,-80.55116249,0.00022782,2]
[355215318,1741018244608,-466.22373751,0.00022782,2]
[355215319,1741018244621,-33.77626249,0.00022782,2]
[355215320,1741018244632,-500.0,0.00022782,2]
[355215321,1741018244642,-500.0,0.00022782,2]
[355215322,1741018244652,-500.0,0.00022782,2]
[355215323,1741018244662,-500.0,0.00022782,2]
[355215324,1741018244672,-500.0,0.00022783,2]
[355215325,1741018244682,-3148.72373751,0.00022784,2]
[355215326,1741018244694,-12500.14222859,0.00022784,2]
[355215327,1741018244707,-745.7840339,0.00022784,2]
[355215328,1741018244717,-715.56,0.00022784,2]
[355215329,1741018244728,-500.0,0.00022784,2]
[355215330,1741018244738,-500.0,0.00022784,2]
[355215331,1741018244748,-500.0,0.00022784,2]
[355215332,1741018244760,-414.61011411,0.00022784,2]
[355215333,1741018244769,-270.17138081,0.00022784,2]
[355215334,1741018244779,-1274.24,0.00022785,2]
[355215335,1741018244789,-500.0,0.00022785,2]
[355215336,1741018244798,-500.0,0.00022785,2]
[355215337,1741018244811,-500.0,0.00022785,2]
[355215338,1741018244821,-500.0,0.00022785,2]
[355215339,1741018244831,-500.0,0.00022785,2]
[355215340,1741018244843,-500.0,0.00022785,2]
[355215341,1741018244853,-942.54,0.00022785,2]
[355215342,1741018244863,-926.46,0.00022785,2]
[355215343,1741018244873,-500.0,0.00022785,2]
[355215344,1741018244884,-500.0,0.00022786,2]
[355215345,1741018244894,-670.33,0.00022787,2]
[355215346,1741018244904,-1321.34,0.00022787,2]
[355215347,1741018244914,-1184.47,0.00022787,2]
[355215348,1741018244924,-1451.74,0.00022787,2]
[355215349,1741018244934,-263.45004463,0.00022787,2]
[355215350,1741018244944,-262.40463938,0.00022787,2]
[355215351,1741018244954,-500.0,0.00022787,2]
[355215352,1741018244964,-500.0,0.00022787,2]
[355215353,1741018244974,-712.77,0.00022787,2]
[355215354,1741018244984,-500.0,0.00022787,2]
[355215355,1741018244996,-500.0,0.00022787,2]
[355215356,1741018245006,-500.0,0.00022787,2]
[355215357,1741018245017,-500.0,0.00022787,2]
[355215358,1741018245028,-510.6468179,0.00022787,2]
[355215359,1741018245038,-199.80463395,0.00022787,2]
[355215360,1741018245050,-500.0,0.00022787,2]
[355215361,1741018245060,-500.0,0.00022787,2]
[355215362,1741018245070,-500.0,0.00022787,2]
[355215363,1741018245080,-500.0,0.00022787,2]
[355215364,1741018245092,-5841.47833531,0.00022787,2]
[355215417,1741018246849,-500.0,0.00022783,2]
[355215419,1741018246861,-1079.23166469,0.00022787,2]
[355215421,1741018246872,-500.0,0.00022787,2]
[355215423,1741018246883,-500.0,0.00022787,2]
[355215425,1741018246893,-500.0,0.00022787,2]
[355215427,1741018246905,-171.35569489,0.00022788,2]
[355215429,1741018246917,-500.0,0.00022788,2]
[355215431,1741018246928,-500.0,0.00022788,2]
[355215434,1741018246942,-500.0,0.00022788,2]
[355215436,1741018246953,-500.0,0.00022788,2]
[355215438,1741018246964,-500.0,0.00022788,2]
[355215440,1741018246974,-500.0,0.00022788,2]
[355215442,1741018246984,-503.21985122,0.00022788,2]
[355215444,1741018246995,-500.0,0.00022788,2]
[355215446,1741018247005,-500.0,0.00022788,2]
[355215448,1741018247015,-500.0,0.00022788,2]
[355215450,1741018247025,-500.0,0.00022788,2]
[355215452,1741018247036,-500.0,0.00022788,2]
[355215454,1741018247046,-509.86104198,0.00022788,2]
[355215456,1741018247058,-500.0,0.00022788,2]
[355215458,1741018247068,-500.0,0.00022788,2]
[355215460,1741018247078,-500.0,0.00022788,2]
[355215462,1741018247091,-500.0,0.00022788,2]
[355215464,1741018247100,-500.0,0.00022788,2]
[355215466,1741018247109,-500.0,0.00022788,2]
[355215468,1741018247120,-500.0,0.00022788,2]
[355215470,1741018247129,-502.22889849,0.00022788,2]
[355215472,1741018247141,-500.0,0.00022788,2]
[355215474,1741018247151,-492.98006936,0.00022788,2]
[355215476,1741018247161,-500.0,0.00022788,2]
[355215478,1741018247171,-500.0,0.00022788,2]
[355215480,1741018247182,-583.08420684,0.00022788,2]
[355215482,1741018247192,-500.0,0.00022788,2]
[355215484,1741018247203,-500.0,0.00022788,2]
[355215486,1741018247213,-500.0,0.00022788,2]
[355215505,1741018247394,-500.0,0.00022788,2]
[355215507,1741018247406,-500.0,0.00022788,2]
[355215510,1741018247419,-500.0,0.00022788,2]
[355215512,1741018247430,-500.0,0.00022788,2]
[355215514,1741018247439,-534.28868781,0.00022788,2]
[355215516,1741018247450,-500.0,0.00022788,2]
[355215517,1741018247459,-500.0,0.00022788,2]
[355215519,1741018247469,-500.0,0.00022788,2]
[355215522,1741018247479,-500.0,0.00022788,2]
[355215524,1741018247491,-500.0,0.00022788,2]
[355215526,1741018247500,-500.0,0.00022788,2]
[355215528,1741018247511,-327.67789295,0.00022788,2]
[355215529,1741018247523,-500.0,0.00022788,2]
[355215531,1741018247533,-51.82559156,0.00022788,2]
[355216149,1741018267451,642.24553555,0.00020688,2]
[355216150,1741018304838,243.89,0.00020688,2]
[355216153,1741018498793,243.89,0.00020688,2]
[355216154,1741018513049,243.89,0.00020688,2]
[355216157,1741018537375,243.89,0.00021,2]
[355216158,1741018568790,428.16369037,0.00020688,2]
[355216180,1741018870416,285.44246024,0.00020688,2]
[355216189,1741019146478,222.0,0.00021,2]
[355216192,1741019171552,190.2949735,0.000189,2]
[355216325,1741019437844,-300.0,0.00021699,2]
[355216327,1741019437854,-1052.12980024,0.000217,2]
[355216339,1741019437979,-586.48494287,0.000217,2]
[355216454,1741019442394,-8738.38525689,0.000217,2]
[355216456,1741019442408,-431.326736,0.00021749,2]
[355216457,1741019442418,-243.89,0.00022599,2]
[355216458,1741019442427,-172.58351857,0.00022678,2]
[355216459,1741019442437,-172.58351857,0.0002268,2]
[355216460,1741019442446,-500.0,0.0002277,2]
[355216462,1741019442456,-223.04924674,0.0002277,2]
[355216463,1741019442465,-500.0,0.0002277,2]
[355216464,1741019442474,-500.0,0.0002277,2]
[355216466,1741019442483,-500.0,0.0002277,2]
[355216467,1741019442492,-500.0,0.0002277,2]
[355216469,1741019442501,-500.0,0.0002277,2]
[355216471,1741019442511,-500.0,0.0002277,2]
[355216473,1741019442521,-500.0,0.0002277,2]
[355216475,1741019442530,-500.0,0.0002277,2]
[355216476,1741019442539,-500.0,0.0002277,2]
[355216477,1741019442549,-500.0,0.0002277,2]
[355216478,1741019442559,-500.0,0.0002277,2]
[355216479,1741019442568,-500.0,0.0002277,2]
[355216482,1741019442578,-500.0,0.0002277,2]
[355216485,1741019442588,-500.0,0.0002277,2]
[355216488,1741019442597,-500.0,0.0002277,2]
[355216491,1741019442607,-500.0,0.0002277,2]
[355216494,1741019442616,-500.0,0.0002277,2]
[355216497,1741019442627,-500.0,0.0002277,2]
[355216499,1741019442636,-500.0,0.0002277,2]
[355216500,1741019442648,-500.0,0.0002277,2]
[355216501,1741019442658,-500.0,0.0002277,2]
[355216502,1741019442667,-500.0,0.0002277,2]
[355216503,1741019442677,-500.0,0.0002277,2]
[355216504,1741019442686,-500.0,0.0002277,2]
[355216505,1741019442696,-500.0,0.0002277,2]
[355216506,1741019442706,-500.0,0.0002277,2]
[355216507,1741019442716,-500.0,0.0002277,2]
[355216508,1741019442727,-500.0,0.0002277,2]
[355216509,1741019442737,-500.0,0.0002277,2]
[355216511,1741019442746,-500.0,0.0002277,2]
[355216513,1741019442756,-500.0,0.0002277,2]
[355216514,1741019442767,-500.0,0.0002277,2]
[355216515,1741019442776,-500.0,0.0002277,2]
[355216516,1741019442786,-500.0,0.0002277,2]
[355216517,1741019442796,-500.0,0.0002277,2]
[355216518,1741019442806,-500.0,0.0002277,2]
[355216519,1741019442817,-500.0,0.0002277,2]
[355216520,1741019442827,-500.0,0.0002277,2]
[355216522,1741019442836,-500.0,0.0002277,2]
[355216524,1741019442846,-500.0,0.0002277,2]
[355216526,1741019442855,-500.0,0.0002277,2]
[355216528,1741019442865,-15711.54,0.00022771,2]
[355216530,1741019442875,-685.75,0.00022771,2]
[355216532,1741019442884,-500.0,0.00022771,2]
[355216534,1741019442894,-500.0,0.00022771,2]
[355216536,1741019442906,-500.0,0.00022771,2]
[355216538,1741019442916,-500.0,0.00022771,2]
[355216540,1741019442926,-500.0,0.00022771,2]
[355216542,1741019442935,-500.0,0.00022771,2]
[355216544,1741019442945,-500.0,0.00022771,2]
[355216546,1741019442956,-500.0,0.00022772,2]
[355216549,1741019442967,-500.0,0.00022772,2]
[355216551,1741019442977,-500.0,0.00022772,2]
[355216553,1741019442987,-500.0,0.00022772,2]
[355216555,1741019442997,-500.0,0.00022772,2]
[355216557,1741019443006,-189.11996657,0.00022772,2]
[355216559,1741019443016,-290.22707988,0.00022772,2]
[355216561,1741019443027,-1160.03,0.00022772,2]
[355216563,1741019443037,-660.53,0.00022772,2]
[355216565,1741019443046,-500.0,0.00022772,2]
[355216567,1741019443057,-818.08,0.00022772,2]
[355216569,1741019443066,-500.0,0.00022773,2]
[355216571,1741019443076,-500.0,0.00022773,2]
[355216572,1741019443086,-500.0,0.00022773,2]
[355216574,1741019443096,-504.49758211,0.00022773,2]
[355216576,1741019443106,-503.79416774,0.00022773,2]
[355216578,1741019443116,-500.0,0.00022773,2]
[355216579,1741019443126,-500.0,0.00022773,2]
[355216581,1741019443136,-500.0,0.00022773,2]
[355216583,1741019443145,-502.21391993,0.00022773,2]
[355216584,1741019443159,-500.0,0.00022773,2]
[355216586,1741019443169,-500.0,0.00022773,2]
[355216588,1741019443179,-500.0,0.00022773,2]
[355216590,1741019443190,-500.0,0.00022773,2]
[355216591,1741019443201,-500.0,0.00022773,2]
[355216592,1741019443211,-514.78725232,0.00022773,2]
[355216593,1741019443221,-500.0,0.00022773,2]
[355216594,1741019443231,-500.0,0.00022773,2]
[355216595,1741019443241,-500.0,0.00022773,2]
[355216596,1741019443251,-500.0,0.00022773,2]
[355216597,1741019443260,-500.0,0.00022773,2]
[355216598,1741019443269,-500.0,0.00022773,2]
[355216600,1741019443280,-500.0,0.00022773,2]
[355216602,1741019443290,-500.0,0.00022773,2]
[355216604,1741019443299,-1221.15,0.00022773,2]
[355216606,1741019443309,-500.0,0.00022773,2]
[355216608,1741019443319,-500.0,0.00022773,2]
[355216610,1741019443329,-500.0,0.00022773,2]
[355216612,1741019443339,-500.0,0.00022773,2]
[355216614,1741019443349,-500.0,0.00022773,2]
[355216616,1741019443358,-1023.47,0.00022773,2]
[355216618,1741019443367,-500.0,0.00022773,2]
[355216620,1741019443377,-500.0,0.00022773,2]
[355216622,1741019443387,-500.0,0.00022773,2]
[355216624,1741019443396,-500.0,0.00022773,2]
[355216626,1741019443408,-500.0,0.00022773,2]
[355216628,1741019443418,-543.64189143,0.00022773,2]
[355216630,1741019443428,-500.0,0.00022773,2]
[355216632,1741019443437,-500.0,0.00022773,2]
[355216634,1741019443447,-903.27,0.00022773,2]
[355216636,1741019443458,-500.0,0.00022773,2]
[355216638,1741019443467,-500.0,0.00022773,2]
[355216640,1741019443476,-511.71710434,0.00022773,2]
[355216642,1741019443486,-887.86,0.00022773,2]
[355216644,1741019443496,-500.0,0.00022773,2]
[355216646,1741019443505,-500.0,0.00022773,2]
[355216648,1741019443514,-500.0,0.00022773,2]
[355216650,1741019443524,-500.0,0.00022773,2]
[355216652,1741019443534,-500.0,0.00022773,2]
[355216654,1741019443544,-500.0,0.00022773,2]
[355216656,1741019443554,-642.4,0.00022773,2]
[355216658,1741019443564,-1266.28,0.00022773,2]
[355216660,1741019443575,-1135.12,0.00022773,2]
[355216663,1741019443586,-1391.26,0.00022773,2]
[355216665,1741019443595,-500.0,0.00022773,2]
[355216667,1741019443605,-683.07,0.00022773,2]
[355216669,1741019443614,-2718.17118875,0.00022774,5]
[355216671,1741019443624,-700.87111694,0.00022774,5]
[355216673,1741019443634,-151.0,0.00022774,2]
[355216675,1741019443643,-800.0,0.00022774,2]
[355216677,1741019443655,-864.0,0.00022774,2]
[355216679,1741019443664,-933.12,0.00022774,2]
[355216681,1741019443673,-1007.7696,0.00022774,2]
[355216683,1741019443682,-1088.391168,0.00022774,2]
[355216685,1741019443692,-1175.46246144,0.00022774,2]
[355216687,1741019443701,-1600.0,0.00022774,2]
[355216689,1741019443710,-320.99522556,0.00022774,2]
[355216690,1741019443720,-500.0,0.00022775,2]
[355216692,1741019443732,-500.0,0.00022775,2]
[355216694,1741019443741,-387.14274365,0.00022778,2]
[355216696,1741019443751,-585.56,0.00022778,2]
[355216699,1741019443762,-173.7983464,0.00022778,2]
[355216700,1741019443771,-713.76,0.00022778,2]
[355216702,1741019443782,-500.0,0.00022778,2]
[355216704,1741019443791,-500.0,0.00022778,2]
[355216706,1741019443801,-500.0,0.00022778,2]
[355216708,1741019443811,-500.0,0.00022778,2]
[355216710,1741019443820,-500.0,0.00022778,2]
[355216712,1741019443830,-500.0,0.00022778,2]
[355216714,1741019443839,-500.0,0.00022778,2]
[355216716,1741019443848,-500.0,0.00022778,2]
[355216719,1741019443858,-500.0,0.00022778,2]
[355216721,1741019443867,-500.0,0.00022778,2]
[355216723,1741019443877,-500.0,0.00022778,2]
[355216725,1741019443886,-500.0,0.00022778,2]
[355216727,1741019443898,-500.0,0.00022778,2]
[355216729,1741019443909,-500.0,0.00022778,2]
[355216731,1741019443919,-6632.35,0.00022778,2]
[355216733,1741019443928,-500.0,0.00022778,2]
[355216735,1741019443938,-500.0,0.00022778,2]
[355216736,1741019443947,-472.11137929,0.00022778,2]
[355216739,1741019443958,-500.0,0.00022778,2]
[355216741,1741019443967,-500.0,0.00022778,2]
[355216743,1741019443977,-500.0,0.00022778,2]
[355216745,1741019443986,-500.0,0.00022778,2]
[355216747,1741019443996,-500.0,0.00022778,2]
[355216749,1741019444012,-500.0,0.00022778,2]
[355216751,1741019444022,-500.0,0.00022778,2]
[355216753,1741019444031,-800.39,0.00022778,2]
[355216755,1741019444041,-500.0,0.00022778,2]
[355216757,1741019444050,-500.0,0.00022778,2]
[355216759,1741019444060,-500.0,0.00022778,2]
[355216761,1741019444070,-500.0,0.00022778,2]
[355216763,1741019444079,-395.52033233,0.00022778,2]
[355216765,1741019444089,-20095.56,0.00022778,2]
[355216767,1741019444098,-500.0,0.00022778,2]
[355216769,1741019444108,-500.0,0.00022778,2]
[355216771,1741019444117,-500.0,0.00022778,2]
[355216773,1741019444127,-647.06,0.00022778,2]
[355216775,1741019444137,-500.0,0.00022778,2]
[355216777,1741019444146,-500.0,0.00022778,2]
[355216780,1741019444162,-500.0,0.00022778,2]
[355216782,1741019444172,-500.0,0.00022778,2]
[355216784,1741019444182,-500.0,0.00022778,2]
[355216786,1741019444192,-509.18897472,0.00022778,2]
[355216788,1741019444202,-500.0,0.00022778,2]
[355216790,1741019444211,-49568.15022179,0.00022779,7]
[355216792,1741019444229,-18043.2,0.00022779,7]
[355216799,1741019444282,-44326.17758247,0.00022779,7]
[355217277,1741019472981,150.0,0.00020679,2]
[355217289,1741019774138,150.0,0.00020679,2]
[355217313,1741020560852,10117.0,0.00021,2]
[355217340,1741020636691,-215.663368,0.0002177,2]
[355217341,1741020636702,-270.6629561,0.00022606,2]
[355217342,1741020636867,-1678.63405845,0.00022666,2]
[355217343,1741020636878,-500.0,0.00022764,2]
[355217344,1741020636888,-500.0,0.00022764,2]
[355217345,1741020636898,-500.0,0.00022764,2]
[355217346,1741020636907,-500.0,0.00022764,2]
[355217347,1741020636916,-500.0,0.00022764,2]
[355217348,1741020636926,-500.0,0.00022764,2]
[355217349,1741020636935,-500.0,0.00022764,2]
[355217350,1741020636945,-500.0,0.00022764,2]
[355217351,1741020636955,-500.0,0.00022764,2]
[355217352,1741020636965,-500.0,0.00022764,2]
[355217353,1741020636975,-500.0,0.00022764,2]
[355217354,1741020636987,-500.0,0.00022764,2]
[355217355,1741020636996,-500.0,0.00022764,2]
[355217356,1741020637006,-500.0,0.00022764,2]
[355217357,1741020637016,-500.0,0.00022764,2]
[355217358,1741020637025,-500.0,0.00022764,2]
[355217359,1741020637035,-500.0,0.00022764,2]
[355217360,1741020637045,-500.0,0.00022764,2]
[355217361,1741020637056,-271.30433674,0.00022764,2]
[355217362,1741020637066,-500.0,0.00022764,2]
[355217363,1741020637076,-500.0,0.00022764,2]
[355217364,1741020637087,-500.0,0.00022764,2]
[355217365,1741020637099,-500.0,0.00022764,2]
[355217366,1741020637109,-500.0,0.00022764,2]
[355217367,1741020637119,-500.0,0.00022764,2]
[355217368,1741020637129,-500.0,0.00022764,2]
[355217369,1741020637139,-500.0,0.00022764,2]
[355217370,1741020637148,-500.0,0.00022764,2]
[355217371,1741020637158,-500.0,0.00022764,2]
[355217372,1741020637167,-500.0,0.00022764,2]
[355217373,1741020637178,-500.0,0.00022764,2]
[355217374,1741020637188,-500.0,0.00022764,2]
[355217375,1741020637198,-15056.89,0.00022765,2]
[355217376,1741020637208,-657.17,0.00022765,2]
[355217377,1741020637218,-500.0,0.00022765,2]
[355217378,1741020637228,-500.0,0.00022765,2]
[355217379,1741020637240,-500.0,0.00022765,2]
[355217380,1741020637250,-64.65188394,0.00022765,2]
[355217381,1741020637264,-1105.60811606,0.00022765,2]
[355217382,1741020637275,-500.0,0.00022766,2]
[355217383,1741020637285,-261.27830482,0.00022766,2]
[355217384,1741020637295,-500.0,0.00022766,2]
[355217385,1741020637306,-500.0,0.00022766,2]
[355217386,1741020637316,-447.40666548,0.00022766,2]
[355217416,1741020638231,-56.82944926,0.00022766,2]
[355217417,1741020638243,-409.47119418,0.00022766,2]
[355217418,1741020638255,-500.0,0.00022766,2]
[355217419,1741020638266,-500.0,0.00022766,2]
[355217420,1741020638276,-500.0,0.00022766,2]
[355217421,1741020638287,-503.00719197,0.00022766,2]
[355217422,1741020638298,-500.0,0.00022766,2]
[355217423,1741020638308,-500.0,0.00022766,2]
[355217424,1741020638318,-500.0,0.00022766,2]
[355217425,1741020638328,-522.96,0.00022766,2]
[355217426,1741020638339,-522.45693879,0.00022766,2]
[355217427,1741020638349,-508.69579423,0.00022766,2]
[355217428,1741020638360,-510.81621157,0.00022766,2]
[355217429,1741020638370,-500.0,0.00022766,2]
[355217430,1741020638381,-263.12377324,0.00022766,2]
[355217431,1741020638392,-500.0,0.00022766,2]
[355217432,1741020638402,-511.14494517,0.00022766,2]
[355217433,1741020638412,-510.46619653,0.00022766,2]
[355217434,1741020638422,-500.0,0.00022766,2]
[355217435,1741020638431,-500.0,0.00022766,2]
[355217436,1741020638442,-500.0,0.00022766,2]
[355217437,1741020638453,-500.0,0.00022766,2]
[355217438,1741020638463,-500.0,0.00022766,2]
[355217439,1741020638474,-500.0,0.00022766,2]
[355217440,1741020638486,-500.0,0.00022766,2]
[355217441,1741020638496,-506.61339043,0.00022766,2]
[355217442,1741020638505,-500.0,0.00022766,2]
[355217443,1741020638516,-854.64,0.00022766,2]
[355217444,1741020638526,-500.0,0.00022766,2]
[355217445,1741020638536,-500.0,0.00022766,2]
[355217446,1741020638545,-500.0,0.00022766,2]
[355217447,1741020638555,-500.0,0.00022766,2]
[355217448,1741020638566,-500.0,0.00022766,2]
[355217449,1741020638577,-196.23111332,0.00022766,2]
[355217450,1741020638587,-511.03280912,0.00022766,2]
[355217451,1741020638598,-500.0,0.00022766,2]
[355217452,1741020638608,-500.0,0.00022766,2]
[355217453,1741020638619,-527.64495115,0.00022766,2]
[355217454,1741020638629,-200.0,0.00022766,2]
[355217455,1741020638640,-500.0,0.00022766,2]
[355217456,1741020638651,-502.64743511,0.00022766,2]
[355217457,1741020638660,-500.0,0.00022766,2]
[355217458,1741020638670,-500.0,0.00022766,2]
[355217459,1741020638680,-500.0,0.00022766,2]
[355217460,1741020638690,-500.0,0.00022766,2]
[355217461,1741020638701,-500.0,0.00022766,2]
[355217462,1741020638711,-500.0,0.00022766,2]
[355217463,1741020638721,-502.21814274,0.00022766,2]
[355217464,1741020638731,-500.0,0.00022766,2]
[355217465,1741020638743,-504.5558612,0.00022766,2]
[355217466,1741020638753,-500.0,0.00022766,2]
[355217467,1741020638764,-589.36984011,0.00022766,2]
[355217468,1741020638773,-506.30028283,0.00022766,2]
[355217469,1741020638783,-500.0,0.00022766,2]
[355217470,1741020638794,-506.32352251,0.00022766,2]
[355217471,1741020638804,-500.0,0.00022766,2]
[355217472,1741020638813,-500.0,0.00022766,2]
[355217473,1741020638823,-500.0,0.00022766,2]
[355217474,1741020638833,-500.0,0.00022766,2]
[355217475,1741020638843,-500.0,0.00022766,2]
[355217476,1741020638853,-203.15895592,0.00022766,2]
[355217477,1741020638864,-500.0,0.00022767,2]
[355217478,1741020638874,-500.0,0.00022767,2]
[355217479,1741020638885,-500.0,0.00022767,2]
[355217480,1741020638895,-500.0,0.00022767,2]
[355217481,1741020638906,-500.0,0.00022767,2]
[355217482,1741020638916,-500.0,0.00022767,2]
[355217483,1741020638926,-865.63,0.00022767,2]
[355217484,1741020638936,-850.87,0.00022767,2]
[355217485,1741020638947,-500.0,0.00022767,2]
[355217486,1741020638958,-500.0,0.00022767,2]
[355217487,1741020638968,-1111.69,0.00022767,2]
[355217488,1741020638978,-615.63,0.00022767,2]
[355217489,1741020638990,-1213.52,0.00022767,2]
[355217490,1741020639000,-1087.82,0.00022767,2]
[355217491,1741020639011,-633.0,0.00022767,2]
[355217492,1741020639021,-1333.29,0.00022767,2]
[355217493,1741020639030,-442.75780116,0.00022767,2]
[355217494,1741020639041,-819.56,0.00022767,2]
[355217495,1741020639051,-654.61,0.00022767,2]
[355217496,1741020639060,-500.0,0.00022767,2]
[355217497,1741020639070,-500.0,0.00022767,2]
[355217498,1741020639079,-500.0,0.00022767,2]
[355217499,1741020639089,-500.0,0.00022767,2]
[355217500,1741020639100,-500.0,0.00022768,2]
[355217501,1741020639110,-500.0,0.00022768,2]
[355217502,1741020639120,-516.20193636,0.00022768,2]
[355217503,1741020639130,-500.0,0.00022768,2]
[355217504,1741020639140,-513.34628005,0.00022768,2]
[355217505,1741020639151,-500.0,0.00022768,2]
[355217506,1741020639160,-561.16,0.00022768,2]
[355217507,1741020639170,-500.0,0.00022768,2]
[355217508,1741020639181,-191.42672819,0.00022768,2]
[355217509,1741020639191,-500.0,0.00022768,2]
[355217510,1741020639200,-500.0,0.00022768,2]
[355217511,1741020639210,-684.02,0.00022768,2]
[355217512,1741020639219,-500.0,0.00022768,2]
[355217513,1741020639228,-500.0,0.00022768,2]
[355217514,1741020639241,-509.26487638,0.00022768,2]
[355217515,1741020639251,-500.0,0.00022768,2]
[355217516,1741020639260,-500.0,0.00022768,2]
[355217517,1741020639271,-516.50514987,0.00022768,2]
[355217518,1741020639282,-500.0,0.00022768,2]
[355217519,1741020639292,-500.0,0.00022768,2]
[355217520,1741020639301,-500.0,0.00022768,2]
[355217521,1741020639311,-500.0,0.00022768,2]
[355217522,1741020639321,-500.0,0.00022768,2]